fUST/lending_fUST_20240227
["ID","MTS","AMOUNT","RATE_DAILY","PERIOD"]
[315431138,1709031040497,-500.0,0.00019178,2]
[315431143,1709031040511,-500.0,0.00019178,2]
[315431146,1709031040522,-500.0,0.00019178,2]
[315431148,1709031040533,-500.0,0.00019178,2]
[315431151,1709031040544,-500.0,0.00019178,2]
[315431154,1709031040556,-500.0,0.00019178,2]
[315431159,1709031040567,-4975.62,0.00019178,2]
[315431162,1709031040578,-500.0,0.00019178,2]
[315431165,1709031040589,-821.94,0.00019178,2]
[315431168,1709031040600,-821.94,0.00019178,2]
[315431171,1709031040612,-821.94,0.00019178,2]
[315431175,1709031040623,-821.94,0.00019178,2]
[315431178,1709031040633,-821.94,0.00019178,2]
[315431182,1709031040644,-821.94,0.00019178,2]
[315431185,1709031040654,-821.94,0.00019178,2]
[315431188,1709031040664,-821.94,0.00019178,2]
[315431191,1709031040676,-821.94,0.00019178,2]
[315431195,1709031040687,-821.94,0.00019178,2]
[315431198,1709031040697,-821.94,0.00019178,2]
[315431201,1709031040708,-1690.48,0.00019178,2]
[315431203,1709031040718,-500.0,0.00019178,2]
[315431205,1709031040731,-500.0,0.00019178,2]
[315431208,1709031040742,-182.29292872,0.00019178,2]
[315431209,1709031040752,-1304.09,0.00019178,2]
[315431210,1709031040763,-500.0,0.00019178,2]
[315431212,1709031040774,-500.0,0.00019178,2]
[315431215,1709031040785,-500.0,0.00019178,2]
[315431217,1709031040796,-500.0,0.00019178,2]
[315431219,1709031040807,-6748.67,0.00019178,2]
[315431221,1709031040818,-500.0,0.00019178,2]
[315431223,1709031040829,-500.0,0.00019178,2]
[315431225,1709031040841,-500.0,0.00019178,2]
[315431227,1709031040852,-500.0,0.00019178,2]
[315431229,1709031040863,-3239.46,0.00019178,2]
[315431232,1709031040874,-593.26,0.00019178,2]
[315431234,1709031040885,-500.0,0.00019178,2]
[315431236,1709031040896,-4614.53,0.00019178,2]
[315431238,1709031040908,-500.0,0.00019178,2]
[315431241,1709031040918,-524.3336593,0.00019178,2]
[315431244,1709031040929,-2407.33,0.00019178,2]
[315431247,1709031040940,-1146.61,0.00019178,2]
[315431250,1709031040951,-500.0,0.00019178,2]
[315431266,1709031040963,-500.0,0.00019178,2]
[315431268,1709031041097,-500.0,0.00019178,2]
[315431270,1709031041106,-500.0,0.00019178,2]
[315431272,1709031041117,-209.21007188,0.00019178,2]
[315431274,1709031041126,-320.15175574,0.00019178,2]
[315431276,1709031041139,-282.6196593,0.00019178,2]
[315431278,1709031041147,-2404.01,0.00019178,2]
[315431280,1709031041157,-18318.51,0.00019178,2]
[315431282,1709031041166,-3161.62,0.00019178,2]
[315431284,1709031041175,-3952.58,0.00019178,2]
[315431286,1709031041185,-220.04820398,0.00019178,2]
[315431288,1709031041193,-500.0,0.00019178,2]
[315431290,1709031041203,-868.04,0.00019178,2]
[315431292,1709031041212,-500.64514974,0.00019178,2]
[315431294,1709031041221,-500.0,0.00019178,2]
[315431296,1709031041231,-292.53384056,0.00019178,2]
[315431298,1709031041240,-694.82180753,0.00019178,2]
[315431300,1709031041251,-166.905245,0.00019178,2]
[315431302,1709031041260,-169.277185,0.00019178,2]
[315431304,1709031041269,-430.973088,0.00019178,4]
[315431306,1709031041278,-166.666666,0.00019178,2]
[315431308,1709031041288,-163.466573,0.00019178,2]
[315431310,1709031041301,-500.0,0.00019187,2]
[315431312,1709031041310,-500.0,0.00019242,2]
[315431314,1709031041321,-500.0,0.0001925,2]
[315431316,1709031041329,-500.0,0.0001925,2]
[315431318,1709031041339,-500.0,0.0001925,2]
[315431320,1709031041349,-500.0,0.0001925,2]
[315431322,1709031041358,-500.0,0.0001925,2]
[315431324,1709031041367,-500.0,0.0001925,2]
[315431326,1709031041377,-238.47583384,0.0001925,2]
[315431328,1709031041386,-500.0,0.0001925,2]
[315431330,1709031041395,-500.0,0.0001925,2]
[315431332,1709031041405,-500.0,0.0001925,2]
[315431334,1709031041414,-1519.40144155,0.0001925,2]
[315431336,1709031041423,-486.79569354,0.00019296,2]
[315431338,1709031041432,-1794.18371941,0.00019352,2]
[315431340,1709031041441,-959.01542021,0.00019379,2]
[315431342,1709031041449,-821.94,0.00019451,2]
[315431344,1709031041459,-821.94,0.00019451,2]
[315431346,1709031041468,-821.94,0.00019451,2]
[315431348,1709031041478,-500.0,0.00019452,2]
[315431351,1709031041488,-500.0,0.00019452,2]
[315431352,1709031041497,-500.0,0.00019452,2]
[315431355,1709031041506,-809.97,0.00019452,2]
[315431357,1709031041515,-1268.67,0.00019452,2]
[315431359,1709031041524,-500.0,0.00019452,2]
[315431361,1709031041533,-500.0,0.00019452,2]
[315431362,1709031041542,-268.6099061,0.00019452,2]
[315431365,1709031041551,-500.0,0.00019452,2]
[315431366,1709031041560,-500.80767734,0.00019452,2]
[315431368,1709031041569,-500.0,0.00019452,2]
[315431370,1709031041578,-500.0,0.00019452,2]
[315431372,1709031041587,-500.0,0.00019452,2]
[315431374,1709031041596,-500.0,0.00019452,2]
[315431376,1709031041605,-500.0,0.00019452,2]
[315431378,1709031041614,-500.0,0.00019452,2]
[315431380,1709031041623,-500.53281888,0.00019452,2]
[315431382,1709031041633,-501.00933044,0.00019452,2]
[315431384,1709031041642,-500.0,0.00019452,2]
[315431387,1709031041652,-500.0,0.00019452,2]
[315431389,1709031041662,-749.07,0.00019452,2]
[315431391,1709031041671,-500.0,0.00019452,2]
[315431393,1709031041680,-500.0,0.00019452,2]
[315431395,1709031041689,-523.56834789,0.00019452,2]
[315431397,1709031041699,-501.36407866,0.00019452,2]
[315431399,1709031041708,-500.0,0.00019452,2]
[315431401,1709031041718,-500.0,0.00019452,2]
[315431402,1709031041727,-500.0,0.00019452,2]
[315431405,1709031041737,-500.0,0.00019452,2]
[315431407,1709031041746,-500.0,0.00019452,2]
[315431409,1709031041755,-500.0,0.00019452,2]
[315431411,1709031041764,-322.02847247,0.00019452,2]
[315431413,1709031041774,-500.0,0.00019452,2]
[315431414,1709031041783,-500.0,0.00019452,2]
[315431417,1709031041793,-500.0,0.00019452,2]
[315431418,1709031041802,-502.85792086,0.00019452,2]
[315431421,1709031041812,-500.0,0.00019452,2]
[315431423,1709031041823,-1271.86,0.00019452,2]
[315431425,1709031041833,-500.0,0.00019452,2]
[315431427,1709031041842,-500.0,0.00019452,2]
[315431429,1709031041852,-500.0,0.00019452,2]
[315431431,1709031041862,-500.0,0.00019452,2]
[315431433,1709031041872,-500.0,0.00019452,2]
[315431435,1709031041881,-500.0,0.00019452,2]
[315431437,1709031041890,-500.0,0.00019452,2]
[315431438,1709031041900,-500.0,0.00019452,2]
[315431441,1709031041909,-500.0,0.00019452,2]
[315431442,1709031041918,-500.0,0.00019452,2]
[315431444,1709031041928,-500.0,0.00019452,2]
[315431447,1709031041938,-212.44196053,0.00019452,2]
[315431449,1709031041947,-354.29,0.00019452,2]
[315431451,1709031041956,-500.0,0.00019452,2]
[315431452,1709031041965,-1536.97,0.00019452,2]
[315431455,1709031041975,-395.16181797,0.00019452,2]
[315431456,1709031041985,-500.0,0.00019452,2]
[315431458,1709031041994,-521.78939552,0.00019452,2]
[315431461,1709031042004,-500.0,0.00019452,2]
[315431462,1709031042013,-500.0,0.00019452,2]
[315431465,1709031042023,-500.0,0.00019452,2]
[315431466,1709031042032,-1519.07,0.00019452,2]
[315431468,1709031042042,-1414.54,0.00019452,2]
[315431470,1709031042051,-500.0,0.00019452,2]
[315431472,1709031042061,-500.0,0.00019452,2]
[315431474,1709031042070,-500.0,0.00019452,2]
[315431476,1709031042080,-696.69,0.00019452,2]
[315431478,1709031042089,-500.0,0.00019452,2]
[315431480,1709031042098,-500.0,0.00019452,2]
[315431482,1709031042107,-500.0,0.00019452,2]
[315431484,1709031042117,-376.53396052,0.00019452,2]
[315431486,1709031042127,-500.0,0.00019452,2]
[315431488,1709031042136,-500.0,0.00019452,2]
[315431490,1709031042145,-501.19562815,0.00019452,2]
[315431492,1709031042154,-560.08,0.00019452,2]
[315431494,1709031042164,-712.06,0.00019452,2]
[315431496,1709031042173,-500.0,0.00019452,2]
[315431498,1709031042182,-907.1,0.00019452,2]
[315431500,1709031042192,-500.0,0.00019452,2]
[315431502,1709031042201,-500.0,0.00019452,2]
[315431504,1709031042211,-500.0,0.00019452,2]
[315431507,1709031042221,-728.61,0.00019452,2]
[315431508,1709031042230,-500.0,0.00019452,2]
[315431510,1709031042240,-1145.82,0.00019452,2]
[315431512,1709031042252,-500.0,0.00019452,2]
[315431514,1709031042263,-500.0,0.00019452,2]
[315431517,1709031042274,-2482.48,0.00019452,2]
[315431518,1709031042284,-500.0,0.00019452,2]
[315431520,1709031042296,-501.3868524,0.00019452,2]
[315431522,1709031042306,-767.04,0.00019452,2]
[315431524,1709031042317,-500.0,0.00019452,2]
[315431527,1709031042331,-500.0,0.00019452,2]
[315431529,1709031042341,-500.0,0.00019452,2]
[315431530,1709031042352,-1907.83,0.00019452,2]
[315431532,1709031042362,-1799.8,0.00019452,2]
[315431534,1709031042372,-500.0,0.00019452,2]
[315431536,1709031042382,-500.0,0.00019452,2]
[315431538,1709031042392,-500.0,0.00019452,2]
[315431540,1709031042402,-598.39,0.00019452,2]
[315431542,1709031042413,-500.0,0.00019452,2]
[315431544,1709031042424,-500.0,0.00019452,2]
[315431547,1709031042434,-500.0,0.00019452,2]
[315431548,1709031042443,-500.0,0.00019452,2]
[315431550,1709031042453,-581.55260075,0.00019452,2]
[315431552,1709031042463,-1946.01,0.00019452,2]
[315431555,1709031042472,-1862.12,0.00019452,2]
[315431556,1709031042484,-500.0,0.00019452,2]
[315431558,1709031042493,-500.0,0.00019452,2]
[315431560,1709031042502,-643.32,0.00019452,2]
[315431563,1709031042511,-10079.62,0.00019452,2]
[315431566,1709031042521,-500.0,0.00019452,2]
[315431570,1709031042531,-500.0,0.00019452,2]
[315431571,1709031042542,-504.40324197,0.00019452,2]
[315431574,1709031042553,-441.60606939,0.00019452,2]
[315431575,1709031042562,-559.21,0.00019452,2]
[315431577,1709031042572,-500.0,0.00019452,2]
[315431579,1709031042582,-500.0,0.00019452,2]
[315431581,1709031042591,-4134.42,0.00019452,2]
[315431583,1709031042600,-500.0,0.00019452,2]
[315431584,1709031042609,-500.0,0.00019452,2]
[315431586,1709031042619,-500.0,0.00019452,2]
[315431588,1709031042629,-500.0,0.00019452,2]
[315431590,1709031042638,-19597.57,0.00019452,2]
[315431592,1709031042647,-500.0,0.00019452,2]
[315431593,1709031042656,-500.0,0.00019452,2]
[315431595,1709031042665,-226.05511992,0.00019452,2]
[315431597,1709031042675,-500.0,0.00019452,2]
[315431599,1709031042686,-500.0,0.00019452,2]
[315431601,1709031042696,-500.0,0.00019452,2]
[315431602,1709031042705,-500.0,0.00019452,2]
[315431604,1709031042715,-500.0,0.00019452,2]
[315431606,1709031042724,-500.0,0.00019452,2]
[315431608,1709031042736,-262.021544,0.00019452,2]
[315431609,1709031042746,-500.0,0.00019452,2]
[315431611,1709031042755,-4975.62,0.00019452,2]
[315431613,1709031042764,-500.0,0.00019452,2]
[315431615,1709031042774,-1690.48,0.00019452,2]
[315431618,1709031042783,-500.0,0.00019452,2]
[315431619,1709031042794,-500.0,0.00019452,2]
[315431621,1709031042803,-1304.09,0.00019452,2]
[315431623,1709031042812,-500.91730771,0.00019452,2]
[315431625,1709031042822,-500.0,0.00019452,2]
[315431627,1709031042831,-500.0,0.00019452,2]
[315431628,1709031042840,-6748.67,0.00019452,2]
[315431630,1709031042849,-501.17206482,0.00019452,2]
[315431632,1709031042858,-500.0,0.00019452,2]
[315431634,1709031042867,-3239.46,0.00019452,2]
[315431636,1709031042876,-593.26,0.00019452,2]
[315431637,1709031042886,-500.0,0.00019452,2]
[315431639,1709031042895,-4614.53,0.00019452,2]
[315431641,1709031042904,-500.0,0.00019452,2]
[315431643,1709031042913,-2407.33,0.00019452,2]
[315431645,1709031042922,-1146.61,0.00019452,2]
[315431647,1709031042931,-500.0,0.00019452,2]
[315431648,1709031042941,-500.0,0.00019452,2]
[315431650,1709031042951,-500.0,0.00019452,2]
[315431652,1709031042959,-500.0,0.00019452,2]
[315431654,1709031042969,-2404.01,0.00019452,2]
[315431655,1709031042978,-18318.51,0.00019452,2]
[315431657,1709031042989,-3161.62,0.00019452,2]
[315431659,1709031042998,-3952.58,0.00019452,2]
[315431661,1709031043008,-500.0,0.00019452,2]
[315431663,1709031043017,-868.04,0.00019452,2]
[315431665,1709031043026,-500.0,0.00019452,2]
[315431666,1709031043035,-1794.18371933,0.00019524,2]
[315431668,1709031043044,-166.666666,0.00019627,2]
[315431670,1709031043053,-1794.18371933,0.00019696,2]
[315431672,1709031043063,-821.94,0.00019725,2]
[315431674,1709031043072,-821.94,0.00019725,2]
[315431675,1709031043082,-821.94,0.00019725,2]
[315431677,1709031043091,-500.0,0.00019726,2]
[315431679,1709031043101,-500.0,0.00019726,2]
[315431681,1709031043110,-809.97,0.00019726,2]
[315431682,1709031043119,-1268.67,0.00019726,2]
[315431684,1709031043128,-500.0,0.00019726,2]
[315431686,1709031043137,-500.0,0.00019726,2]
[315431688,1709031043146,-500.0,0.00019726,2]
[315431690,1709031043155,-500.0,0.00019726,2]
[315431692,1709031043164,-500.0,0.00019726,2]
[315431693,1709031043173,-500.0,0.00019726,2]
[315431695,1709031043182,-500.0,0.00019726,2]
[315431697,1709031043192,-213.90015666,0.00019726,2]
[315431699,1709031043201,-500.0,0.00019726,2]
[315431701,1709031043210,-500.0,0.00019726,2]
[315431703,1709031043220,-500.0,0.00019726,2]
[315431705,1709031043229,-749.07,0.00019726,2]
[315431706,1709031043239,-548.95221423,0.00019726,2]
[315431708,1709031043251,-311.25723657,0.00019726,2]
[315431710,1709031043259,-500.0,0.00019726,2]
[315431712,1709031043268,-500.0,0.00019726,2]
[315431714,1709031043277,-500.0,0.00019726,2]
[315431716,1709031043287,-500.0,0.00019726,2]
[315431717,1709031043299,-333.04255885,0.00019726,2]
[315431719,1709031043308,-500.0,0.00019726,2]
[315431721,1709031043317,-500.0,0.00019726,2]
[315431723,1709031043326,-500.0,0.00019726,2]
[315431725,1709031043336,-500.0,0.00019726,2]
[315431727,1709031043345,-1271.86,0.00019726,2]
[315431729,1709031043354,-500.0,0.00019726,2]
[315431731,1709031043363,-235.52195681,0.00019726,2]
[315431732,1709031043373,-500.0,0.00019726,2]
[315431734,1709031043382,-500.0,0.00019726,2]
[315431736,1709031043392,-500.0,0.00019726,2]
[315431738,1709031043401,-501.21301573,0.00019726,2]
[315431740,1709031043411,-448.32673264,0.00019726,2]
[315431742,1709031043420,-500.0,0.00019726,2]
[315431744,1709031043429,-500.0,0.00019726,2]
[315431746,1709031043438,-500.0,0.00019726,2]
[315431748,1709031043447,-1536.97,0.00019726,2]
[315431750,1709031043460,-500.0,0.00019726,2]
[315431751,1709031043470,-500.0,0.00019726,2]
[315431753,1709031043481,-959.01542021,0.00019726,2]
[315431755,1709031043490,-317.207108,0.00019726,2]
[315431757,1709031043499,-1519.07,0.00019726,2]
[315431759,1709031043509,-1414.54,0.00019726,2]
[315431761,1709031043519,-500.0,0.00019726,2]
[315431763,1709031043528,-500.0,0.00019726,2]
[315431765,1709031043537,-500.0,0.00019726,2]
[315431767,1709031043547,-696.69,0.00019726,2]
[315431768,1709031043555,-500.0,0.00019726,2]
[315431770,1709031043564,-500.0,0.00019726,2]
[315431772,1709031043573,-205.02023893,0.00019726,2]
[315431774,1709031043583,-500.0,0.00019726,2]
[315431776,1709031043592,-336.01860419,0.00019726,2]
[315431778,1709031043602,-560.08,0.00019726,2]
[315431780,1709031043610,-712.06,0.00019726,2]
[315431782,1709031043619,-315.7665185,0.00019726,2]
[315431784,1709031043628,-907.1,0.00019726,2]
[315431785,1709031043637,-500.0,0.00019726,2]
[315431787,1709031043646,-500.0,0.00019726,2]
[315431789,1709031043655,-500.0,0.00019726,2]
[315431799,1709031043758,-728.61,0.00019726,2]
[315431801,1709031043768,-500.0,0.00019726,2]
[315431802,1709031043777,-1145.82,0.00019726,2]
[315431804,1709031043786,-500.0,0.00019726,2]
[315431806,1709031043795,-500.0,0.00019726,2]
[315431808,1709031043804,-2482.48,0.00019726,2]
[315431810,1709031043815,-767.04,0.00019726,2]
[315431812,1709031043825,-500.0,0.00019726,2]
[315431814,1709031043835,-500.0,0.00019726,2]
[315431815,1709031043845,-500.0,0.00019726,2]
[315431817,1709031043854,-1907.83,0.00019726,2]
[315431819,1709031043864,-1799.8,0.00019726,2]
[315431821,1709031043873,-500.0,0.00019726,2]
[315431823,1709031043883,-598.39,0.00019726,2]
[315431825,1709031043892,-500.0,0.00019726,2]
[315431827,1709031043901,-302.1536889,0.00019726,2]
[315431828,1709031043910,-500.0,0.00019726,2]
[315431830,1709031043919,-1946.01,0.00019726,2]
[315431832,1709031043928,-1862.12,0.00019726,2]
[315431834,1709031043937,-500.0,0.00019726,2]
[315431836,1709031043947,-501.29042956,0.00019726,2]
[315431838,1709031043956,-643.32,0.00019726,2]
[315431840,1709031043965,-10079.62,0.00019726,2]
[315431841,1709031043975,-500.0,0.00019726,2]
[315431843,1709031043987,-559.21,0.00019726,2]
[315431845,1709031043997,-500.0,0.00019726,2]
[315431847,1709031044007,-500.0,0.00019726,2]
[315431849,1709031044018,-4134.42,0.00019726,2]
[315431851,1709031044028,-500.0,0.00019726,2]
[315431852,1709031044037,-500.0,0.00019726,2]
[315431854,1709031044047,-500.0,0.00019726,2]
[315431856,1709031044057,-500.0,0.00019726,2]
[315431858,1709031044066,-19597.57,0.00019726,2]
[315431860,1709031044075,-231.23191091,0.00019726,2]
[315431862,1709031044084,-560.14134803,0.00019726,2]
[315431864,1709031044094,-500.0,0.00019726,2]
[315431865,1709031044103,-495.60629693,0.00019726,2]
[315431867,1709031044112,-500.0,0.00019726,2]
[315431869,1709031044122,-500.0,0.00019726,2]
[315431871,1709031044132,-500.0,0.00019726,2]
[315431873,1709031044141,-4975.62,0.00019726,2]
[315431875,1709031044153,-500.0,0.00019726,2]
[315431877,1709031044164,-1690.48,0.00019726,2]
[315431878,1709031044173,-500.0,0.00019726,2]
[315431880,1709031044182,-491.01392198,0.00019726,2]
[315431882,1709031044190,-1304.09,0.00019726,2]
[315431884,1709031044199,-500.0,0.00019726,2]
[315431886,1709031044210,-500.0,0.00019726,2]
[315431888,1709031044219,-6748.67,0.00019726,2]
[315431890,1709031044228,-3239.46,0.00019726,2]
[315431891,1709031044239,-593.26,0.00019726,2]
[315431893,1709031044250,-500.0,0.00019726,2]
[315431895,1709031044259,-4614.53,0.00019726,2]
[315431897,1709031044269,-500.0,0.00019726,2]
[315431899,1709031044277,-2407.33,0.00019726,2]
[315431901,1709031044287,-1146.61,0.00019726,2]
[315431903,1709031044299,-500.0,0.00019726,2]
[315431904,1709031044307,-500.0,0.00019726,2]
[315431906,1709031044316,-500.0,0.00019726,2]
[315431908,1709031044325,-500.0,0.00019726,2]
[315431910,1709031044335,-2404.01,0.00019726,2]
[315431912,1709031044345,-18318.51,0.00019726,2]
[315431914,1709031044353,-3952.58,0.00019726,2]
[315431916,1709031044362,-3161.62,0.00019726,2]
[315431917,1709031044373,-500.0,0.00019726,2]
[315431919,1709031044383,-868.04,0.00019726,2]
[315431921,1709031044392,-183.67121497,0.00019726,2]
[315431923,1709031044402,-1794.18371933,0.00019868,2]
[315431925,1709031044411,-821.94,0.00019999,2]
[315431926,1709031044420,-821.94,0.00019999,2]
[315431928,1709031044430,-821.94,0.00019999,2]
[315431930,1709031044439,-821.94,0.00019999,2]
[315431932,1709031044447,-821.94,0.00019999,2]
[315431934,1709031044456,-821.94,0.00019999,2]
[315431936,1709031044465,-821.95258347,0.00019999,2]
[315431938,1709031044474,-500.0,0.0002,2]
[315431939,1709031044485,-809.97,0.0002,2]
[315431941,1709031044494,-1268.67,0.0002,2]
[315431943,1709031044503,-500.0,0.0002,2]
[315431945,1709031044513,-299.44952129,0.0002,2]
[315431947,1709031044522,-500.0,0.0002,2]
[315431949,1709031044531,-401.01611644,0.0002,2]
[315431951,1709031044540,-466.40052004,0.0002,2]
[315431953,1709031044549,-500.0,0.0002,2]
[315431954,1709031044558,-500.0,0.0002,2]
[315431956,1709031044567,-500.0,0.0002,2]
[315431958,1709031044576,-500.0,0.0002,2]
[315431960,1709031044584,-749.07,0.0002,2]
[315431962,1709031044594,-500.0,0.0002,2]
[315431964,1709031044603,-500.0,0.0002,2]
[315431965,1709031044612,-500.0,0.0002,2]
[315431967,1709031044621,-500.0,0.0002,2]
[315431968,1709031044631,-500.0,0.0002,2]
[315431969,1709031044640,-501.97109407,0.0002,2]
[315431970,1709031044649,-500.0,0.0002,2]
[315431971,1709031044658,-1271.86,0.0002,2]
[315431972,1709031044667,-500.0,0.0002,2]
[315431973,1709031044677,-500.0,0.0002,2]
[315431974,1709031044686,-500.0,0.0002,2]
[315431975,1709031044695,-369.62759187,0.0002,2]
[315431976,1709031044704,-500.0,0.0002,2]
[315431977,1709031044713,-500.0,0.0002,2]
[315431978,1709031044722,-500.0,0.0002,2]
[315431979,1709031044732,-1536.97,0.0002,2]
[315431980,1709031044741,-501.12415207,0.0002,2]
[315431981,1709031044750,-552.56513057,0.0002,2]
[315431982,1709031044760,-1519.07,0.0002,2]
[315431983,1709031044769,-1414.54,0.0002,2]
[315431984,1709031044778,-502.56998248,0.0002,2]
[315431985,1709031044787,-500.0,0.0002,2]
[315431986,1709031044796,-500.0,0.0002,2]
[315431987,1709031044805,-696.69,0.0002,2]
[315431988,1709031044815,-382.1661985,0.0002,2]
[315431989,1709031044824,-500.0,0.0002,2]
[315431990,1709031044834,-500.0,0.0002,2]
[315431992,1709031044843,-560.08,0.0002,2]
[315431994,1709031044853,-712.06,0.0002,2]
[315431995,1709031044862,-907.1,0.0002,2]
[315431997,1709031044872,-500.0,0.0002,2]
[315431999,1709031044881,-500.0,0.0002,2]
[315432001,1709031044890,-500.0,0.0002,2]
[315432003,1709031044899,-728.61,0.0002,2]
[315432005,1709031044908,-500.0,0.0002,2]
[315432007,1709031044917,-1145.82,0.0002,2]
[315432009,1709031044926,-169.21456967,0.0002,2]
[315432011,1709031044936,-336.69898198,0.0002,2]
[315432013,1709031044946,-2482.48,0.0002,2]
[315432015,1709031044955,-767.04,0.0002,2]
[315432017,1709031044966,-500.0,0.0002,2]
[315432019,1709031044975,-525.27752141,0.0002,2]
[315432021,1709031044985,-500.0,0.0002,2]
[315432023,1709031044995,-1907.83,0.0002,2]
[315432025,1709031045005,-1799.8,0.0002,2]
[315432027,1709031045014,-500.0,0.0002,2]
[315432029,1709031045023,-598.39,0.0002,2]
[315432031,1709031045032,-501.80817925,0.0002,2]
[315432033,1709031045041,-500.0,0.0002,2]
[315432035,1709031045050,-1946.01,0.0002,2]
[315432037,1709031045060,-1862.12,0.0002,2]
[315432039,1709031045069,-500.0,0.0002,2]
[315432041,1709031045078,-643.32,0.0002,2]
[315432043,1709031045087,-10079.62,0.0002,2]
[315432045,1709031045096,-559.21,0.0002,2]
[315432047,1709031045105,-502.32182453,0.0002,2]
[315432049,1709031045114,-500.0,0.0002,2]
[315432051,1709031045123,-4134.42,0.0002,2]
[315432053,1709031045133,-224.5571896,0.0002,2]
[315432055,1709031045142,-500.0,0.0002,2]
[315432057,1709031045151,-501.22134572,0.0002,2]
[315432059,1709031045161,-500.0,0.0002,2]
[315432061,1709031045172,-19597.57,0.0002,2]
[315432063,1709031045181,-500.0,0.0002,2]
[315432065,1709031045190,-4975.62,0.0002,2]
[315432067,1709031045200,-500.0,0.0002,2]
[315432069,1709031045209,-1690.48,0.0002,2]
[315432071,1709031045219,-500.0,0.0002,2]
[315432073,1709031045228,-1304.09,0.0002,2]
[315432075,1709031045239,-500.0,0.0002,2]
[315432077,1709031045250,-576.30378723,0.0002,2]
[315432079,1709031045259,-6748.67,0.0002,2]
[315432081,1709031045268,-3239.46,0.0002,2]
[315432083,1709031045277,-593.26,0.0002,2]
[315432085,1709031045287,-500.0,0.0002,2]
[315432086,1709031045299,-4614.53,0.0002,2]
[315432087,1709031045308,-543.7600871,0.0002,2]
[315432088,1709031045318,-2407.33,0.0002,2]
[315432089,1709031045327,-1146.61,0.0002,2]
[315432090,1709031045336,-500.0,0.0002,2]
[315432091,1709031045345,-550.12394881,0.0002,2]
[315432092,1709031045354,-500.0,0.0002,2]
[315432093,1709031045363,-500.0,0.0002,2]
[315432094,1709031045374,-2404.01,0.0002,2]
[315432095,1709031045383,-18318.51,0.0002,2]
[315432096,1709031045393,-3952.58,0.0002,2]
[315432097,1709031045401,-3161.62,0.0002,2]
[315432098,1709031045411,-500.0,0.0002,2]
[315432099,1709031045419,-868.04,0.0002,2]
[315432100,1709031045429,-50000.0,0.00020001,5]
[315432101,1709031045438,-50000.0,0.00020005,5]
[315432102,1709031045448,-1794.18371933,0.0002004,2]
[315432103,1709031045457,-153.0,0.00020055,2]
[315432104,1709031045466,-153.0,0.00020055,2]
[315432105,1709031045475,-153.0,0.00020055,2]
[315432106,1709031045485,-959.01542021,0.00020073,2]
[315432108,1709031045494,-329.80280131,0.00020075,2]
[315432109,1709031045503,-500.0,0.00020075,2]
[315432111,1709031045512,-500.0,0.00020075,2]
[315432112,1709031045520,-500.0,0.00020075,2]